Cogmind - Beta 10 @@@ ROGUE MODE // 2020.09.17 @ 19:50:55 // Winter2019/RPGLIKE Player: Torako Result: Destroyed by D-53 Grenadier with Mini Grenade Launcher Performance ------------- Evolutions (0) 0 Regions Visited (2) 400 Robots Destroyed (43) 215 Value Destroyed (863) 863 Prototype IDs (0) 0 Alien Tech Used (0) 0 Bonus (28) 28 TOTAL SCORE: 1506 Bonus ------- High Alert Combat Kills 28 Cogmind --------- Core Integrity 0/1000 Matter 129/300 Energy 76/250 System Corruption 0% Temperature Cool (291) Movement Hovering (60) Location -10/Mines Parts ------- > --- POWER (1) -------- Ion Engine > --- PROPULSION (2) --- Hover Unit > --- UTILITY (3) ------ Structural Scanner Signal Interpreter Terrain Scanner > --- WEAPON (3) ------- EM Pulse Gun EM Pulse Gun > --- INVENTORY (1) ---- Grenade Launcher Peak State ------------ > --- POWER ------------ Ion Engine > --- PROPULSION ------- Hover Unit Hover Unit > --- UTILITY ---------- Heat Sink Structural Scanner Signal Interpreter > --- WEAPON ----------- EM Pulse Gun EM Pulse Gun Mining Claw > --- INVENTORY -------- Grenade Launcher [Rating: 9] Favorites ----------- Power Ion Engine Engine Ion Engine Propulsion Hover Unit Treads Light Treads Wheel Wheel Hover Unit Hover Unit Utility Signal Interpreter Device Structural Scanner Processor Signal Interpreter Protection Light Armor Plating Weapon EM Pulse Gun Energy Gun EM Pulse Gun Launcher Grenade Launcher Slashing Weapon Mining Claw Build | -11 -10 -10 ------- Run | Scr Mat Min Slots Evolved 5 | 1 4 . Power . | . . . Propulsion 1 | 1 . . Utility 2 | . 2 . Weapon 2 | . 2 . Parts Attached 18 | 4 12 2 Power 2 | 1 1 . Engine 2 | 1 1 . Core . | . . . Reactor . | . . . Propulsion 4 | 2 2 . Treads 1 | 1 . . Leg . | . . . Wheel 1 | 1 . . Hover 2 | . 2 . Flight . | . . . Utility 5 | . 5 . Device 3 | . 3 . Storage . | . . . Processor 1 | . 1 . Hackware . | . . . Protection 1 | . 1 . Artifact . | . . . Weapon 7 | 1 4 2 Energy Gun 5 | 1 3 1 Energy Cannon . | . . . Ballistic Gun . | . . . Ballistic Cannon . | . . . Launcher 1 | . . 1 Special Weapon . | . . . Impact Weapon . | . . . Slashing Weapon 1 | . 1 . Piercing Weapon . | . . . Special Melee Weapon . | . . . Unidentified Prototypes . | . . . Parts Lost 3 | . 1 2 Power . | . . . Propulsion 1 | . . 1 Utility 1 | . 1 . Weapon 1 | . . 1 Highest Loss Streak 2 | . 1 2 Average Slot Usage (%) 98 | . 98 99 Engine 12 | . 12 11 Treads 5 | . 6 . Wheel 5 | . 7 . Hover 13 | . 10 21 Device 15 | . 13 22 Processor 12 | . 12 11 Protection 4 | . 6 . Energy Gun 19 | . 17 26 Launcher 1 | . . 6 Slashing Weapon 5 | . 7 . Naked Turns . | . . . Heaviest Build 14 | 7 13 14 Greatest Support 20 | 20 20 17 Greatest Overweight (x) 1 | . 1 . Average Overweight (x) . | . . . Largest Inventory Capacity 1 | . 1 1 Average Capacity . | . . 1 Most Carried 1 | . 1 1 Average Carried . | . . 1 Final Capacity 1 | . 1 1 Final Carried 1 | . 1 1 Class Distribution -------------------- 73% | Mutant 26% | Skirmisher Dominant Class ---------------- Mutant | -10/Materials Mutant | -10/Mines Resources | -11 -10 -10 ----------- Run | Scr Mat Min Matter Collected 459 | 221 139 99 Remotely . | . . . Salvage Created 909 | . 801 108 Parts 63 | . 59 4 Haulers Intercepted . | . . . Recyclers Shooed . | . . . Parts Field Recycled . | . . . Retrieved Matter . | . . . Parts Self-Destructed . | . . . Prevented . | . . . Kills | -11 -10 -10 ------- Run | Scr Mat Min Combat Hostiles Destroyed 36 | . 21 15 Melee 1 | . 1 . Guns 19 | . 18 1 AOE 16 | . 2 14 Classes Destroyed 6 | . 4 2 Builder 2 | . 2 . Tunneler 2 | . . 2 Watcher 3 | . 3 . Swarmer 6 | . 5 1 Grunt 18 | . 16 2 Assembled 12 | . . 12 Best Kill Streak 13 | . 5 13 Combat Bots Only 11 | . 5 11 Max Kills in Single Turn 4 | . 2 4 Gunslinging . | . . . Exploded 3 | . 1 3 Melee 1 | . 1 . Uniques/NPCs Destroyed . | . . . Combat | -11 -10 -10 -------- Run | Scr Mat Min Damage Taken 2136 | . 909 1227 Core 1702 | . 681 1021 Absorbed by Shields . | . . . Redirected to Core 1193 | . 457 736 Core Remaining (%) 100 | 100 . . Volleys Fired 136 | . 98 38 Largest 3 | . 3 3 Hottest 120 | . 120 120 Shots Fired 172 | . 112 60 Gun 146 | . 112 34 Cannon . | . . . Launcher 26 | . . 26 Special . | . . . Kinetic . | . . . Thermal . | . . . Explosive 26 | . . 26 Electromagnetic 146 | . 112 34 Robot Hit Streak 11 | . 11 4 Robot Miss Streak 5 | . 4 5 Penetration Max . | . . . Secondary Targets . | . . . Shots Hit Robots 90 | . 69 21 Core Hits 81 | . 36 45 Critical Hits . | . . . Critical Kills . | . . . Critical Parts Destroyed . | . . . Melee Attacks 1 | . 1 . Impact . | . . . Slashing 1 | . 1 . Piercing . | . . . Sneak Attacks . | . . . Combat Hostiles . | . . . Follow-up Attacks . | . . . Damage Inflicted 2619 | . 1249 1370 Guns 1066 | . 946 120 Cannons . | . . . Explosions 1526 | . 276 1250 Melee 27 | . 27 . Ramming . | . . . Kinetic . | . . . Thermal 276 | . 276 . Explosive 1250 | . . 1250 Electromagnetic 1066 | . 946 120 Impact . | . . . Slashing 27 | . 27 . Piercing . | . . . Highest Corruption . | . . . Average Corruption . | . . . Corruption Purged . | . . . Overload Shots . | . . . Overflow Damage 72 | . 17 55 Projectiles . | . . . Explosions 72 | . 17 55 Melee . | . . . Knockbacks . | . . . Impact . | . . . Kinetic . | . . . Secondary . | . . . Self-Inflicted Damage 250 | . 89 161 Shots 10 | . 4 6 Rammed . | . . . Targets Rammed . | . . . Kicked . | . . . Crushed . | . . . Highest Temperature 303 | . 235 303 Average Temperature 84 | . 87 73 Received Heat Transfer 424 | . 306 118 Effects 2 | . 1 1 Energy Bleed 1 | . . 1 Interference 1 | . 1 . Siege Activations . | . . . Robots Corrupted . | . . . Combat Hostiles . | . . . Parts Fried 7 | . 5 2 Impact Corruptions . | . . . Robots Melted . | . . . Combat Hostiles . | . . . Parts Melted . | . . . Heat Transferred 400 | . 400 . Parts Sabotaged . | . . . Parts Stolen . | . . . Parts Stripped . | . . . Power Chain Reactions 5 | . 5 . Missiles Intercepted . | . . . Alert | -11 -10 -10 ------- Run | Scr Mat Min Peak Influence 484 | . 484 319 Initial 169 | . . 169 Average 237 | . 246 251 Maximum Alert Level 2 | . 2 1 Low Security (%) 35 | 100 33 29 Level 1 51 | . 48 70 Level 2 12 | . 18 . Level 3 . | . . . Level 4 . | . . . Level 5 . | . . . High Security . | . . . Max Security . | . . . Squads Dispatched 6 | . 6 . Investigation 4 | . 4 . Extermination . | . . . Reinforcement 2 | . 2 . Assault . | . . . Garrison . | . . . Intercept . | . . . Construction Impeded . | . . . Haulers Reinforced . | . . . Stealth | -11 -10 -10 --------- Run | Scr Mat Min Distress Signals 2 | . 1 1 Communications Jammed . | . . . Distress Signals . | . . . Times Spotted 64 | . 35 29 Peak Tracking Total 20 | . 5 20 Tactical Retreats 6 | . 4 2 Traps | -11 -10 -10 ------- Run | Scr Mat Min Traps Triggered 1 | . 1 . Indirectly . | . . . Trap Hack Attempts . | . . . Triggered . | . . . Disarmed . | . . . Reprogrammed 4 | . 4 . Reused 1 | . 1 . Traps Extracted . | . . . Installed . | . . . Triggered 2 | . 2 . Machines | -11 -10 -10 ---------- Run | Scr Mat Min Machines Disabled 8 | . 4 4 Max in Single Turn 4 | . 1 4 Machines Sabotaged . | . . . Garrisons Compromised . | . . . Overloaded Fab Kills . | . . . Fab Network Shutdowns . | . . . Hacking | -11 -10 -10 --------- Run | Scr Mat Min Machines Accessed 6 | . 6 . Terminals 4 | . 4 . Fabricators . | . . . Repair Stations . | . . . Recycling Units 2 | . 2 . Scanalyzers . | . . . Garrison Access . | . . . Total Hacks 15 | . 15 . Successful 10 | . 10 . Failed 4 | . 4 . Catastrophic 1 | . 1 . Database Lockouts 1 | . 1 . Manual 11 | . 11 . Terminals 11 | . 11 . Fabricators . | . . . Repair Stations . | . . . Recycling Units 4 | . 4 . Scanalyzers . | . . . Garrison Access . | . . . Terminal Hacks 5 | . 5 . Robot Analysis 1 | . 1 . Unreport Threat 1 | . 1 . Reprogram Traps 1 | . 1 . Hauler Manifests 1 | . 1 . Zone Layout 1 | . 1 . Fabricator Hacks . | . . . Repair Station Hacks . | . . . Recycling Unit Hacks 2 | . 2 . Report Inventory 2 | . 2 . Scanalyzer . | . . . Garrison Access Hacks . | . . . Unauthorized Hacks 3 | . 3 . Terminals 1 | . 1 . Botnet 1 | . 1 . Fabricators . | . . . Repair Stations . | . . . Recycling Units 2 | . 2 . Tunnel 2 | . 2 . Scanalyzers . | . . . Garrison Access . | . . . Data Cores Recovered . | . . . Used . | . . . Hacking Detections 1 | . 1 . Full Trace Events 1 | . 1 . Feedback Events . | . . . Feedback Blocked . | . . . Robot Schematics Acquired . | . . . Robots Built . | . . . Matter . | . . . Time . | . . . Total Robot Build Rating . | . . . Part Schematics Acquired . | . . . Parts Built . | . . . Matter . | . . . Time . | . . . Total Part Build Rating . | . . . Parts Repaired . | . . . Time . | . . . Parts Recycled . | . . . Recycled Matter . | . . . Retrieved Matter . | . . . Retrieved Components . | . . . Parts Scanalyzed . | . . . Part Schematics Acquired . | . . . Parts Damaged . | . . . Bothacking | -11 -10 -10 ------------ Run | Scr Mat Min Used RIF Installer . | . . . Robots Hacked . | . . . Non-combat . | . . . Combat . | . . . Robot Hacks Applied . | . . . Relay Couplers Released . | . . . Robots Rewired . | . . . Allies Hacked . | . . . Hacks Repelled . | . . . Allies | -11 -10 -10 -------- Run | Scr Mat Min Total Allies . | . . . Largest Group . | . . . Highest-Rated Group . | . . . Highest-Rated Ally . | . . . Total Orders . | . . . Ally Attacks . | . . . Total Damage . | . . . Kills . | . . . Allies Corrupted . | . . . Allies Melted . | . . . Intel | -11 -10 -10 ------- Run | Scr Mat Min Robot Analysis Total 1 | . 1 . Derelict Logs Recovered 1 | . . 1 Drone Launches . | . . . Drone Recoveries . | . . . Exploration | -11 -10 -10 ------------- Run | Scr Mat Min Turns Passed 1082 | 46 774 262 Spaces Moved 949 | 47 613 289 Core 7 | 7 . . Treads 88 | 6 82 . Legs . | . . . Wheels 262 | 34 228 . Hover 592 | . 303 289 Flight . | . . . Fastest Speed 50 | 50 56 56 Average Speed 73 | 85 80 56 Slowest Speed 160 | 160 160 56 Overloaded Moves . | . . . Propulsion Burnouts . | . . . Robots Hopped . | . . . Cave-ins Triggered . | . . . Exploration Rate (%) 55 | 3 93 70 Regions Visited 2 Branch Regions 1 Pre-discovered Areas 2 | . 2 . Known Exits Taken 1 | . 1 . Unknown Exits Taken 1 | 1 . . Scrap Searched 3 | . . 3 Spaces Dug 19 | . . 19 Terrain Destroyed 183 | . 16 167 Melee . | . . . Projectile . | . . . AOE 183 | . 16 167 Terrain Rammed . | . . . Walls Destroyed . | . . . Machines Disabled . | . . . Actions | -11 -10 -10 --------- Run | Scr Mat Min Total 1169 | 50 783 336 Wait 19 | . 14 5 Move 947 | 46 612 289 Hop . | . . . Pick Up 5 | . 5 . Fast Attach 14 | 4 10 . Attach . | . . . Detach . | . . . Swap 4 | . 2 2 Drop 10 | . 10 . Fire 136 | . 98 38 Melee 1 | . 1 . Ram . | . . . Kick . | . . . Crush . | . . . Escape Stasis . | . . . Rewire 2 | . . 2 Trap . | . . . Miscellaneous 31 | . 31 . Route ------- -11/Scrapyard -10/Materials (discovered 5 exits: [*Mat x3] / *Min x2) -10/Mines History --------- Turn | Location | Event 4 | -11/Scrapyard | Discovered new exit (range 14) 6 | -11/Scrapyard | Upgraded with Propulsion slot (x1) 47 | -11/Scrapyard | Entered Materials 116 | -10/Materials | Upgraded with Utility slot (x1) 133 | -10/Materials | Discovered new exit (range 7) 138 | -10/Materials | Upgraded with Utility slot (x1) 144 | -10/Materials | Upgraded with Weapon slot (x1) 302 | -10/Materials | Build established: Mutant 458 | -10/Materials | Discovered new exit (range 7) 485 | -10/Materials | Reached level 2 518 | -10/Materials | Discovered new exit (range 11) 623 | -10/Materials | Core integrity fell below 50% 645 | -10/Materials | Upgraded with Weapon slot (x1) 655 | -10/Materials | Central database locked down 707 | -10/Materials | Discovered new exit (range 12) 726 | -10/Materials | Reached level 3 806 | -10/Materials | Discovered new exit (range 15) 820 | -10/Materials | Identified exit to Mines 821 | -10/Materials | Entered Mines 824 | -10/Mines | Assembled infested the area 857 | -10/Mines | Core integrity fell below 20% 880 | -10/Mines | Destroyed 11 combat bots 961 | -10/Mines | Reached level 4 1083 | -10/Mines | Destroyed by D-53 Grenadier with Mini Grenade Launcher Last Messages --------------- 00961_ G-34 Mercenary destroyed. 00967_ Acquired 15 matter. 00981_ The unstable cave ceiling collapses. 01004_ U-05 Engineer lays Concrete. 01011_ as-87466 destroyed. 01016_ U-05 Engineer builds a Wall. 01019_ K-01 Serf collects debris. 01037_ Searching scrap... 01037_ Found Sml. Battery. 01037_ Found Sml. Laser. 01037_ Found 24 Matter. 01043_ Acquired derelict log, extracted data. Data stored: Storage entrances (x1). 01060_ Acquired 24 matter. 01070_ Hover Unit destroyed. 01073_ The unstable cave ceiling collapses. 01078_ D-53 Grenadier IFF system glitched. 01080_ Overheating: Energy bleed (-21). 01080_ EM Pulse Gun destroyed. 01081_ The unstable cave ceiling collapses. Map ----- +----------------------------------------------------+ | ??????????????????????????????????# ## % | | ???????????????????????????????????# | | ???????????????????????????????????# | | ????????????????????????????????#### | | ????????????????????????????????? | | ??????????????????????????????????? " | | ???????????????????????????????????#?#%" | | ????????????????????????????????????##" | | ????????????????????????????????##### | | ????????????????????????????????# | | ????????????????????# #?????????# | | ?????????????????? ??????????# [= | | ??????????????? ??????????##%%%= ## | | ????????????? ###????????##* " ### | | ?????????????? #?????????## #?# | | ??????????????? ##?????????#### #?# | | ??????????????? d #????????????# ##?# | | ???????????????? d #????????????# ##??# | | ????????????????? ##???????????# #???# | | ?????????????????# ##??????????# #???# | | ?????????????????# ##?????????# #???# | | ????????????????## #?????##### #???# | | ????????????????# #?????# #???# | | ????????????????# #?????# ######?### | | ?????????????????# ####### #????#???# | | ?????????????????# @ #????????# | | ?????????????????# #### ######???????# | | ?????????????????# ##??# ##???????????# | | ?????????????????## ##???# #??????####??# | | ??????????????????## ###???# #?????## ##?# | | ???????????????????##### #?????# ##????# ### | | ???????????????????????#[####### #?????# ## | | ???????????????????????# ! ####### # | | ???????????????????????######### | | ???????????????????????????????########## | | ????????????????????????????????????????#### | | ??????????????????????????????????????????### | | ????????????????????#???#????#??????????????### | | ??????????????????????????????????????????????? | | ??????????????????????????????????????????????? | | | | | | | | | | | | | | | | | | | | | +----------------------------------------------------+ Best States ------------- Heat Dissipation 35 Energy Generation 10 Energy Capacity 250 Matter Stores 300 Matter Capacity 300 Sight Range 16 Terrain Scan Range 14 Terrain Scan Density 10 Armor Coverage 150 Evasion (%) 53 Recoil Reduction 1 Item Schematics ----------------- None Robot Schematics ------------------ None Fabricated ------------ Nothing Alien Tech Used ----------------- None Achievements -------------- None Challenges ------------ None RPGLIKE | -11 -10 -10 --------- Run | Scr Mat Min Levels Raised 3 | . 2 1 XP Earned 7519 | 3000 3319 1200 XP Spent 3930 | 500 2950 480 Upgrades 15 | 1 6 8 Propulsion Slot 1 | 1 . . Utility Slot 2 | . 2 . Weapon Slot 2 | . 2 . Core Integrity 8 | . . 8 Mass Support 1 | . 1 . Inventory Capacity 1 | . 1 . Protomatter Created 299 | . 292 7 Integrity Restored 681 | . 681 . Core 646 | . 646 . Parts 35 | . 35 . Protomatter Decayed 99 | . 62 37 Game ------ Seed TitaniumUltimateArray Manual? 0 Play Time 00:17:37 Cumulative 262.2 hours Start 2020.09.17 @ 19:31:41 End 2020.09.17 @ 19:50:55 Sessions 1 Manual Loads 0 Difficulty Rogue Special Mode Winter2019/RPGLIKE Game No. 264 Rogue 264 Adventurer 0 Explorer 0 Win Type - Total 14 Types 10/0/3/1/0/0/0/0/0 Lore% 82 Gallery% 90 Achievement% 73 Wizard Run 0 Options --------- ASCII 0 Keyboard 1 Movement Numpad Keybinds 0 Fullscreen 1 Font 18/SmallcapsGlow Map View 76x50 Tactical HUD 1 Map Filters NONE Filters NONE Steam 1 RUN: 3c211110-21c8-4abd-bbf6-7b22441707ee